[Event "Live Chess"]
[Site "Chess.com"]
[Date "2024.06.02"]
[Round "-"]
[White "Ferrarifan27"]
[Black "MagnersCarlsberg2870"]
[Result "1-0"]
[WhiteElo "2149"]
[BlackElo "1768"]
[TimeControl "300"]
[EndTime "8:16:06 PDT"]
[Termination "Ferrarifan27 won by resignation"]

1. e4 {[%clk 0:04:58]} 1... c5 {[%clk 0:04:57.7]} 2. Nf3 {[%clk 0:04:56.3]} 2...
a6 {[%clk 0:04:56.8]} 3. d4 {[%clk 0:04:53.6]} 3... cxd4 {[%clk 0:04:55.7]} 4.
Nxd4 {[%clk 0:04:52.4]} 4... Nf6 {[%clk 0:04:54.6]} 5. Nc3 {[%clk 0:04:48.5]}
5... e5 {[%clk 0:04:53.1]} 6. Nb3 {[%clk 0:04:43.1]} 6... Bb4 {[%clk 0:04:50.2]}
7. Bd3 {[%clk 0:04:40.5]} 7... d5 {[%clk 0:04:48.4]} 8. exd5 {[%clk 0:04:38.3]}
8... e4 {[%clk 0:04:46.1]} 9. Bc4 {[%clk 0:04:36.8]} 9... b5 {[%clk 0:04:39.3]}
10. Be2 {[%clk 0:04:32]} 10... O-O {[%clk 0:04:28.8]} 11. Bg5 {[%clk 0:04:18.9]}
11... h6 {[%clk 0:04:26.7]} 12. Bh4 {[%clk 0:04:08.6]} 12... g5 {[%clk
0:04:25.5]} 13. Bg3 {[%clk 0:04:07.6]} 13... Nxd5 {[%clk 0:04:24.6]} 14. O-O
{[%clk 0:04:02.8]} 14... Nxc3 {[%clk 0:04:23]} 15. bxc3 {[%clk 0:04:01.6]} 15...
Bxc3 {[%clk 0:04:22.2]} 16. Qxd8 {[%clk 0:03:59.1]} 16... Rxd8 {[%clk
0:04:20.1]} 17. Rad1 {[%clk 0:03:58.7]} 17... Re8 {[%clk 0:04:10.8]} 18. Nc5
{[%clk 0:03:46.7]} 18... f5 {[%clk 0:04:03.3]} 19. Bh5 {[%clk 0:03:42.8]} 19...
Rf8 {[%clk 0:03:54.8]} 20. Bd6 {[%clk 0:03:39.6]} 20... Rf6 {[%clk 0:03:51.9]}
21. Be7 {[%clk 0:03:37.3]} 1-0

[Event "Live Chess"]
[Site "Chess.com"]
[Date "2024.06.02"]
[Round "-"]
[White "LaupMiths"]
[Black "Queensandpawns"]
[Result "0-1"]
[WhiteElo "1821"]
[BlackElo "2236"]
[TimeControl "300"]
[EndTime "8:16:33 PDT"]
[Termination "Queensandpawns won on time"]

1. Nf3 {[%clk 0:04:53.1]} 1... e5 {[%clk 0:04:59.9]} 2. Nxe5 {[%clk 0:04:50.8]}
2... Nc6 {[%clk 0:04:59.2]} 3. Nf3 {[%clk 0:04:48.4]} 3... d5 {[%clk 0:04:56.5]}
4. d3 {[%clk 0:04:47.2]} 4... Nf6 {[%clk 0:04:56]} 5. g3 {[%clk 0:04:46.4]} 5...
Bd6 {[%clk 0:04:55.6]} 6. Bg2 {[%clk 0:04:46]} 6... h5 {[%clk 0:04:55.2]} 7. h3
{[%clk 0:04:41.9]} 7... Bf5 {[%clk 0:04:51]} 8. a3 {[%clk 0:04:36.6]} 8... Qd7
{[%clk 0:04:50.3]} 9. b4 {[%clk 0:04:34.4]} 9... a6 {[%clk 0:04:49]} 10. Bb2
{[%clk 0:04:32.5]} 10... O-O-O {[%clk 0:04:48]} 11. Nbd2 {[%clk 0:04:30.6]}
11... Rde8 {[%clk 0:04:42.9]} 12. e3 {[%clk 0:04:29.3]} 12... Ne5 {[%clk
0:04:33.2]} 13. Nd4 {[%clk 0:04:15.1]} 13... Bxd3 {[%clk 0:04:29.5]} 14. cxd3
{[%clk 0:03:53.8]} 14... Nxd3+ {[%clk 0:04:29.4]} 15. Kf1 {[%clk 0:03:53]} 15...
Nxb2 {[%clk 0:04:27.8]} 16. Qc2 {[%clk 0:03:51.6]} 16... Na4 {[%clk 0:04:21.5]}
17. Rc1 {[%clk 0:03:47.7]} 17... h4 {[%clk 0:04:12.2]} 18. g4 {[%clk 0:03:45.1]}
18... Kb8 {[%clk 0:04:02.5]} 19. Nf5 {[%clk 0:03:34.1]} 19... Nb6 {[%clk
0:03:50.8]} 20. Nxg7 {[%clk 0:03:28.8]} 20... Re5 {[%clk 0:03:46.1]} 21. Nf5
{[%clk 0:03:27.7]} 21... Rhe8 {[%clk 0:03:42.3]} 22. Nb3 {[%clk 0:03:24.7]}
22... Nc4 {[%clk 0:03:39.4]} 23. Na5 {[%clk 0:03:07.3]} 23... Nxa3 {[%clk
0:03:34.1]} 24. Qa2 {[%clk 0:02:47.9]} 24... Qb5+ {[%clk 0:03:26.5]} 25. Kg1
{[%clk 0:02:44.6]} 25... Qxb4 {[%clk 0:03:23.9]} 26. Nb3 {[%clk 0:02:40.3]}
26... Nb5 {[%clk 0:03:11.4]} 27. Qb2 {[%clk 0:02:13.2]} 27... Ne4 {[%clk
0:02:58.8]} 28. Nxd6 {[%clk 0:02:07.7]} 28... Nbxd6 {[%clk 0:02:51.8]} 29. Rb1
{[%clk 0:01:57.5]} 29... Nc4 {[%clk 0:02:48.6]} 30. Qd4 {[%clk 0:01:53.1]} 30...
Qc3 {[%clk 0:02:34.2]} 31. Kh2 {[%clk 0:01:40.2]} 31... Qxd4 {[%clk 0:02:19.4]}
32. exd4 {[%clk 0:01:36.8]} 32... R5e6 {[%clk 0:02:15.1]} 33. Rhc1 {[%clk
0:01:31.5]} 33... Rb6 {[%clk 0:02:11.1]} 34. Bxe4 {[%clk 0:01:22.3]} 34... Rxe4
{[%clk 0:02:11]} 35. Nc5 {[%clk 0:01:20]} 35... Re2 {[%clk 0:02:08]} 36. Nd7+
{[%clk 0:01:15.4]} 36... Ka7 {[%clk 0:02:07.3]} 37. Nxb6 {[%clk 0:01:15]} 37...
cxb6 {[%clk 0:02:07.2]} 38. Kg1 {[%clk 0:01:09.3]} 38... b5 {[%clk 0:02:05.7]}
39. Rb3 {[%clk 0:01:05.8]} 39... Kb6 {[%clk 0:01:55.7]} 40. Rf3 {[%clk
0:01:04.1]} 40... b4 {[%clk 0:01:51.6]} 41. Rxf7 {[%clk 0:01:02]} 41... b3
{[%clk 0:01:50.8]} 42. g5 {[%clk 0:00:59]} 42... b2 {[%clk 0:01:49.6]} 43. Rb1
{[%clk 0:00:57.1]} 43... Rc2 {[%clk 0:01:25.6]} 44. Kg2 {[%clk 0:00:50.7]} 44...
Rc1 {[%clk 0:01:21.4]} 45. Rxb2+ {[%clk 0:00:47.6]} 45... Nxb2 {[%clk
0:01:21.3]} 46. g6 {[%clk 0:00:46.3]} 46... Rc6 {[%clk 0:01:20.8]} 47. g7 {[%clk
0:00:44.5]} 47... Rg6+ {[%clk 0:01:19.6]} 48. Kf3 {[%clk 0:00:43.4]} 48... Nd3
{[%clk 0:01:13.3]} 49. Ke3 {[%clk 0:00:38.6]} 49... Nb4 {[%clk 0:01:04.8]} 50.
Rf6+ {[%clk 0:00:33.8]} 50... Rxf6 {[%clk 0:01:03.3]} 51. g8=Q {[%clk
0:00:32.6]} 51... Re6+ {[%clk 0:01:01.3]} 52. Kf3 {[%clk 0:00:28.4]} 52... Rf6+
{[%clk 0:00:58.9]} 53. Kg4 {[%clk 0:00:27]} 53... Rc6 {[%clk 0:00:58.8]} 54. f4
{[%clk 0:00:23.9]} 54... a5 {[%clk 0:00:57.8]} 55. f5 {[%clk 0:00:22.5]} 55...
a4 {[%clk 0:00:57.4]} 56. Qa8 {[%clk 0:00:17.9]} 56... Kb5 {[%clk 0:00:45.9]}
57. Kg5 {[%clk 0:00:16.9]} 57... Rb6 {[%clk 0:00:45.8]} 58. f6 {[%clk
0:00:15.3]} 58... Ra6 {[%clk 0:00:42.6]} 59. Qe8+ {[%clk 0:00:14.7]} 59... Kc4
{[%clk 0:00:42.1]} 60. f7 {[%clk 0:00:13.6]} 60... a3 {[%clk 0:00:33.3]} 61.
f8=Q {[%clk 0:00:13]} 61... a2 {[%clk 0:00:33.2]} 62. Qf1+ {[%clk 0:00:09.7]}
62... Kb3 {[%clk 0:00:31]} 63. Qe3+ {[%clk 0:00:08.5]} 63... Ka4 {[%clk
0:00:30.3]} 64. Qd1+ {[%clk 0:00:07.1]} 64... Ka5 {[%clk 0:00:29.5]} 65. Qa3+
{[%clk 0:00:04.7]} 65... Kb5 {[%clk 0:00:29.1]} 66. Qe2+ {[%clk 0:00:02.1]}
66... Kb6 {[%clk 0:00:27.9]} 67. Qxb4+ {[%clk 0:00:00.8]} 67... Ka7 {[%clk
0:00:26.9]} 0-1

[Event "Live Chess"]
[Site "Chess.com"]
[Date "2024.06.02"]
[Round "-"]
[White "GwaryTek"]
[Black "ivan_1968"]
[Result "1/2-1/2"]
[WhiteElo "1888"]
[BlackElo "1805"]
[TimeControl "300"]
[EndTime "8:16:38 PDT"]
[Termination "Game drawn - insufficient material"]

1. d4 {[%clk 0:04:56.2]} 1... Nf6 {[%clk 0:04:58.4]} 2. c4 {[%clk 0:04:53.4]}
2... e6 {[%clk 0:04:57.5]} 3. Nc3 {[%clk 0:04:51]} 3... Bb4 {[%clk 0:04:56.9]}
4. Nf3 {[%clk 0:04:49.7]} 4... O-O {[%clk 0:04:51]} 5. g3 {[%clk 0:04:47.7]}
5... c5 {[%clk 0:04:47.4]} 6. Bg2 {[%clk 0:04:46.1]} 6... cxd4 {[%clk
0:04:32.3]} 7. Nxd4 {[%clk 0:04:46]} 7... Nc6 {[%clk 0:04:29.5]} 8. O-O {[%clk
0:04:44.2]} 8... h6 {[%clk 0:04:18.6]} 9. h3 {[%clk 0:04:31.4]} 9... d5 {[%clk
0:04:14.4]} 10. cxd5 {[%clk 0:04:28.8]} 10... Nxd5 {[%clk 0:04:11.4]} 11. Nxd5
{[%clk 0:04:20.6]} 11... exd5 {[%clk 0:04:09.8]} 12. Be3 {[%clk 0:04:16]} 12...
Nxd4 {[%clk 0:03:31.6]} 13. Bxd4 {[%clk 0:04:15.9]} 13... Be6 {[%clk 0:03:29.6]}
14. Bxg7 {[%clk 0:04:05.4]} 14... Kxg7 {[%clk 0:03:22.4]} 15. Qd4+ {[%clk
0:04:02.8]} 15... Qf6 {[%clk 0:03:18.4]} 16. Qxb4 {[%clk 0:04:00.9]} 16... b6
{[%clk 0:03:15.3]} 17. Rad1 {[%clk 0:03:57.8]} 17... Rfd8 {[%clk 0:03:07.5]} 18.
Rd4 {[%clk 0:03:43.2]} 18... Rac8 {[%clk 0:03:05.3]} 19. Rfd1 {[%clk 0:03:30.6]}
19... Rc4 {[%clk 0:03:00.5]} 20. Qd2 {[%clk 0:02:55.5]} 20... Rxd4 {[%clk
0:02:21.8]} 21. Qxd4 {[%clk 0:02:55.4]} 21... Qxd4 {[%clk 0:02:20.8]} 22. Rxd4
{[%clk 0:02:50]} 22... Rc8 {[%clk 0:02:20.3]} 23. Rd2 {[%clk 0:02:37.1]} 23...
d4 {[%clk 0:02:09.2]} 24. b3 {[%clk 0:02:32.2]} 24... Rd8 {[%clk 0:02:07.4]} 25.
f4 {[%clk 0:02:15.3]} 25... Kf6 {[%clk 0:02:01.8]} 26. Kf2 {[%clk 0:02:13.6]}
26... Ke7 {[%clk 0:01:52]} 27. g4 {[%clk 0:02:10.2]} 27... a5 {[%clk 0:01:44.6]}
28. Be4 {[%clk 0:02:08.2]} 28... Rd6 {[%clk 0:01:34.3]} 29. f5 {[%clk
0:01:17.7]} 29... Bd7 {[%clk 0:01:30.7]} 30. e3 {[%clk 0:01:07.4]} 30... dxe3+
{[%clk 0:01:21.7]} 31. Kxe3 {[%clk 0:01:07.3]} 31... Rxd2 {[%clk 0:01:20.4]} 32.
Kxd2 {[%clk 0:01:07.2]} 32... f6 {[%clk 0:01:19.4]} 33. Ke3 {[%clk 0:01:02.7]}
33... Kd6 {[%clk 0:01:18.7]} 34. Kd4 {[%clk 0:00:57.9]} 34... b5 {[%clk
0:01:16.9]} 35. Bd5 {[%clk 0:00:55.1]} 35... Bc8 {[%clk 0:01:12.6]} 36. a3
{[%clk 0:00:31.4]} 36... Ba6 {[%clk 0:01:09]} 37. b4 {[%clk 0:00:24.4]} 37... a4
{[%clk 0:01:07.1]} 38. Be6 {[%clk 0:00:19.1]} 38... Bb7 {[%clk 0:01:04.9]} 39.
Ke3 {[%clk 0:00:17.2]} 39... Bc6 {[%clk 0:00:58.8]} 40. Kf4 {[%clk 0:00:16.1]}
40... Be8 {[%clk 0:00:55.8]} 41. h4 {[%clk 0:00:14.9]} 41... Bc6 {[%clk
0:00:53.4]} 42. g5 {[%clk 0:00:14.2]} 42... hxg5+ {[%clk 0:00:51.8]} 43. hxg5
{[%clk 0:00:14.1]} 43... fxg5+ {[%clk 0:00:46.7]} 44. Kxg5 {[%clk 0:00:13.5]}
44... Be4 {[%clk 0:00:43.5]} 45. Kg6 {[%clk 0:00:10.3]} 45... Ke5 {[%clk
0:00:41.3]} 46. Bd7 {[%clk 0:00:08.4]} 46... Kd4 {[%clk 0:00:32]} 47. Kg5 {[%clk
0:00:07.7]} 47... Bd5 {[%clk 0:00:18.7]} 48. f6 {[%clk 0:00:06.4]} 48... Kc3
{[%clk 0:00:16.6]} 49. Bxb5 {[%clk 0:00:05.1]} 49... Kb3 {[%clk 0:00:14.6]} 50.
Kg6 {[%clk 0:00:03.4]} 50... Kxa3 {[%clk 0:00:13.2]} 51. Bxa4 {[%clk 0:00:01.1]}
51... Kxa4 {[%clk 0:00:11.7]} 52. b5 {[%clk 0:00:00.8]} 52... Kxb5 {[%clk
0:00:10.7]} 53. Kg7 {[%clk 0:00:00.7]} 53... Kc6 {[%clk 0:00:09.1]} 54. f7
{[%clk 0:00:00.6]} 54... Bxf7 {[%clk 0:00:06.5]} 1/2-1/2

[Event "Live Chess"]
[Site "Chess.com"]
[Date "2024.06.02"]
[Round "-"]
[White "TigerTank70"]
[Black "stevochess11"]
[Result "1-0"]
[WhiteElo "2180"]
[BlackElo "1707"]
[TimeControl "300"]
[EndTime "8:16:38 PDT"]
[Termination "TigerTank70 won by checkmate"]

1. e4 {[%clk 0:04:55]} 1... c5 {[%clk 0:04:57.4]} 2. d4 {[%clk 0:04:53.5]} 2...
cxd4 {[%clk 0:04:56]} 3. c3 {[%clk 0:04:52.8]} 3... dxc3 {[%clk 0:04:54]} 4.
Nxc3 {[%clk 0:04:51.2]} 4... Nc6 {[%clk 0:04:52.9]} 5. Nf3 {[%clk 0:04:36.3]}
5... d6 {[%clk 0:04:46.2]} 6. Bc4 {[%clk 0:03:57.8]} 6... a6 {[%clk 0:04:37.1]}
7. Qe2 {[%clk 0:03:51.5]} 7... Nf6 {[%clk 0:04:25.8]} 8. O-O {[%clk 0:03:45.4]}
8... Bg4 {[%clk 0:04:22.7]} 9. Be3 {[%clk 0:03:28.3]} 9... Ne5 {[%clk
0:04:11.3]} 10. Nxe5 {[%clk 0:03:25.8]} 10... dxe5 {[%clk 0:03:55.5]} 11. f3
{[%clk 0:03:23]} 11... Bd7 {[%clk 0:03:46.7]} 12. Rfd1 {[%clk 0:03:15.1]} 12...
e6 {[%clk 0:03:43.1]} 13. Qf2 {[%clk 0:03:01.7]} 13... Bb4 {[%clk 0:03:24.4]}
14. Qg3 {[%clk 0:02:55.4]} 14... Nh5 {[%clk 0:03:02.5]} 15. Qxe5 {[%clk
0:02:50.6]} 15... Bxc3 {[%clk 0:02:43.1]} 16. Qxh5 {[%clk 0:02:36.6]} 16... Bxb2
{[%clk 0:02:40.6]} 17. Bxe6 {[%clk 0:02:31.1]} 17... Bxa1 {[%clk 0:02:36.7]} 18.
Qxf7# {[%clk 0:02:28.7]} 1-0

[Event "Live Chess"]
[Site "Chess.com"]
[Date "2024.06.02"]
[Round "-"]
[White "Ginger_GM"]
[Black "TheSmoulderingMaster"]
[Result "1-0"]
[WhiteElo "2665"]
[BlackElo "1783"]
[TimeControl "300"]
[EndTime "8:16:43 PDT"]
[Termination "Ginger_GM won by resignation"]

1. e4 {[%clk 0:04:58.8]} 1... c5 {[%clk 0:04:58.7]} 2. Nf3 {[%clk 0:04:57.1]}
2... d6 {[%clk 0:04:58]} 3. d4 {[%clk 0:04:55.9]} 3... cxd4 {[%clk 0:04:57.4]}
4. Nxd4 {[%clk 0:04:55.8]} 4... Nf6 {[%clk 0:04:56.8]} 5. Nc3 {[%clk 0:04:55.4]}
5... g6 {[%clk 0:04:56.2]} 6. Be3 {[%clk 0:04:52.1]} 6... Bg7 {[%clk 0:04:55.2]}
7. f3 {[%clk 0:04:50.8]} 7... O-O {[%clk 0:04:54.3]} 8. Bc4 {[%clk 0:04:47.9]}
8... Nc6 {[%clk 0:04:53.1]} 9. Qd2 {[%clk 0:04:46.6]} 9... Ne5 {[%clk
0:04:51.5]} 10. Bb3 {[%clk 0:04:45.3]} 10... Bd7 {[%clk 0:04:50.8]} 11. h4
{[%clk 0:04:43.4]} 11... Qa5 {[%clk 0:04:49.4]} 12. h5 {[%clk 0:04:39.5]} 12...
Nxh5 {[%clk 0:04:48]} 13. g4 {[%clk 0:04:36.8]} 13... Nf6 {[%clk 0:04:41.8]} 14.
Bh6 {[%clk 0:04:33.6]} 14... Rfc8 {[%clk 0:04:35.9]} 15. Bxg7 {[%clk 0:04:32.2]}
15... Kxg7 {[%clk 0:04:35]} 16. O-O-O {[%clk 0:04:29.7]} 16... Rxc3 {[%clk
0:04:27.1]} 17. bxc3 {[%clk 0:04:28.5]} 17... Rc8 {[%clk 0:04:21.3]} 18. Kb2
{[%clk 0:04:27.3]} 18... Qb6 {[%clk 0:04:08.6]} 19. Qh6+ {[%clk 0:04:24.6]}
19... Kg8 {[%clk 0:04:07.9]} 20. g5 {[%clk 0:04:15.6]} 20... Nh5 {[%clk
0:04:05.5]} 21. Rxh5 {[%clk 0:04:14.5]} 21... gxh5 {[%clk 0:04:03.8]} 22. Qxh5
{[%clk 0:04:13.1]} 22... Nc4+ {[%clk 0:03:59.7]} 23. Kb1 {[%clk 0:04:06.9]}
23... Na3+ {[%clk 0:03:56.1]} 24. Kc1 {[%clk 0:04:04.7]} 24... e6 {[%clk
0:03:45.4]} 25. Rh1 {[%clk 0:04:02.8]} 25... Rxc3 {[%clk 0:03:39.3]} 26. Qxh7+
{[%clk 0:04:01.1]} 26... Kf8 {[%clk 0:03:38.8]} 27. Qh8+ {[%clk 0:04:01]} 27...
Ke7 {[%clk 0:03:37.5]} 28. Qf6+ {[%clk 0:04:00.9]} 1-0

[Event "Live Chess"]
[Site "Chess.com"]
[Date "2024.06.02"]
[Round "-"]
[White "NottheBishopSacrifice"]
[Black "friarnator"]
[Result "1-0"]
[WhiteElo "2336"]
[BlackElo "2202"]
[TimeControl "300"]
[EndTime "8:16:55 PDT"]
[Termination "NottheBishopSacrifice won by resignation"]

1. d4 {[%clk 0:04:58.3]} 1... Nf6 {[%clk 0:04:57.8]} 2. Nf3 {[%clk 0:04:57.9]}
2... g6 {[%clk 0:04:57]} 3. g3 {[%clk 0:04:57.6]} 3... Bg7 {[%clk 0:04:56.4]} 4.
Bg2 {[%clk 0:04:57.2]} 4... O-O {[%clk 0:04:56]} 5. O-O {[%clk 0:04:56.6]} 5...
d6 {[%clk 0:04:55.5]} 6. c4 {[%clk 0:04:55.8]} 6... Nbd7 {[%clk 0:04:55]} 7. Nc3
{[%clk 0:04:55.3]} 7... e5 {[%clk 0:04:54.5]} 8. e4 {[%clk 0:04:54.7]} 8... Re8
{[%clk 0:04:52.6]} 9. Re1 {[%clk 0:04:54]} 9... exd4 {[%clk 0:04:51.4]} 10. Nxd4
{[%clk 0:04:53.9]} 10... a6 {[%clk 0:04:50.4]} 11. Bf4 {[%clk 0:04:51.8]} 11...
Ne5 {[%clk 0:04:49.5]} 12. b3 {[%clk 0:04:49.9]} 12... Rb8 {[%clk 0:04:46.9]}
13. Rc1 {[%clk 0:04:48.8]} 13... c5 {[%clk 0:04:46.1]} 14. Nf3 {[%clk
0:04:46.5]} 14... b5 {[%clk 0:04:45.4]} 15. Nxe5 {[%clk 0:04:42]} 15... dxe5
{[%clk 0:04:41.7]} 16. Be3 {[%clk 0:04:41.6]} 16... b4 {[%clk 0:04:34.4]} 17.
Qxd8 {[%clk 0:04:38.7]} 17... Rxd8 {[%clk 0:04:34.3]} 18. Nd5 {[%clk 0:04:37.8]}
18... Nxd5 {[%clk 0:04:32]} 19. cxd5 {[%clk 0:04:36.3]} 19... a5 {[%clk
0:04:24.6]} 20. Rxc5 {[%clk 0:04:32.8]} 20... Ra8 {[%clk 0:04:19.9]} 21. Rec1
{[%clk 0:04:30]} 21... Bd7 {[%clk 0:04:16.2]} 22. Bf1 {[%clk 0:04:27.6]} 22...
Bf8 {[%clk 0:04:14.8]} 23. Rc7 {[%clk 0:04:25.1]} 23... Bd6 {[%clk 0:04:13.8]}
24. R7c2 {[%clk 0:04:21.7]} 24... a4 {[%clk 0:04:11.7]} 25. Bc4 {[%clk
0:04:20.3]} 25... f5 {[%clk 0:04:06.3]} 26. f3 {[%clk 0:04:17]} 26... Kf7 {[%clk
0:03:58.2]} 27. bxa4 {[%clk 0:04:14.1]} 27... Rxa4 {[%clk 0:03:56.3]} 28. Bb3
{[%clk 0:04:12.9]} 28... Raa8 {[%clk 0:03:53.5]} 29. Bg5 {[%clk 0:04:10.5]}
29... Rdb8 {[%clk 0:03:48.1]} 30. Kg2 {[%clk 0:04:05.7]} 30... Kg7 {[%clk
0:03:40.4]} 31. Re1 {[%clk 0:04:01.3]} 31... h6 {[%clk 0:03:39]} 32. Be3 {[%clk
0:03:58.9]} 32... h5 {[%clk 0:03:28.5]} 33. Bc5 {[%clk 0:03:56.6]} 33... Bxc5
{[%clk 0:03:17.9]} 34. Rxc5 {[%clk 0:03:53.5]} 34... Kf6 {[%clk 0:03:16.9]} 35.
Rc7 {[%clk 0:03:52]} 35... Ba4 {[%clk 0:03:13.2]} 36. Bxa4 {[%clk 0:03:47.2]}
36... Rxa4 {[%clk 0:03:13.1]} 37. Rc6+ {[%clk 0:03:45.2]} 37... Kf7 {[%clk
0:03:11.4]} 38. Re2 {[%clk 0:03:42.3]} 38... fxe4 {[%clk 0:03:07.4]} 39. fxe4
{[%clk 0:03:40.6]} 39... Rba8 {[%clk 0:03:06.8]} 40. Rf2+ {[%clk 0:03:40.1]}
40... Kg7 {[%clk 0:03:05.2]} 41. Rc7+ {[%clk 0:03:38.5]} 41... Kh6 {[%clk
0:03:02.6]} 42. Rcc2 {[%clk 0:03:38.1]} 42... h4 {[%clk 0:02:59]} 43. Rfd2
{[%clk 0:03:37]} 43... hxg3 {[%clk 0:02:54.6]} 44. hxg3 {[%clk 0:03:36.9]} 44...
b3 {[%clk 0:02:46.4]} 45. axb3 {[%clk 0:03:34.7]} 45... Rxe4 {[%clk 0:02:45.6]}
46. d6 {[%clk 0:03:34]} 46... Rd4 {[%clk 0:02:44.7]} 47. Rxd4 {[%clk 0:03:32.2]}
47... exd4 {[%clk 0:02:43.8]} 48. Rd2 {[%clk 0:03:31.7]} 48... Kg5 {[%clk
0:02:38.4]} 49. Rxd4 {[%clk 0:03:30]} 49... Kf6 {[%clk 0:02:37.8]} 50. Kf3
{[%clk 0:03:28.6]} 50... Ke5 {[%clk 0:02:36.4]} 51. Rd1 {[%clk 0:03:26.7]} 51...
Ke6 {[%clk 0:02:28.8]} 52. d7 {[%clk 0:03:25.6]} 52... Rd8 {[%clk 0:02:25.7]}
53. Kg4 {[%clk 0:03:24.3]} 53... Kf6 {[%clk 0:02:23.2]} 54. b4 {[%clk
0:03:22.2]} 54... Ke6 {[%clk 0:02:20.1]} 55. b5 {[%clk 0:03:21]} 55... Rxd7
{[%clk 0:02:19.1]} 56. Rxd7 {[%clk 0:03:19.3]} 56... Kxd7 {[%clk 0:02:19]} 57.
Kg5 {[%clk 0:03:18.6]} 57... Kc7 {[%clk 0:02:18.5]} 58. Kxg6 {[%clk 0:03:18.5]}
58... Kb6 {[%clk 0:02:18.4]} 59. Kf7 {[%clk 0:03:18.2]} 59... Kxb5 {[%clk
0:02:18.3]} 60. g4 {[%clk 0:03:17.7]} 60... Kc6 {[%clk 0:02:18.2]} 61. g5 {[%clk
0:03:17.6]} 1-0

[Event "Live Chess"]
[Site "Chess.com"]
[Date "2024.06.02"]
[Round "-"]
[White "Frankie_Badacsonyi"]
[Black "Eva3337"]
[Result "1-0"]
[WhiteElo "2363"]
[BlackElo "1167"]
[TimeControl "300"]
[EndTime "8:16:56 PDT"]
[Termination "Frankie_Badacsonyi won on time"]

1. Nf3 {[%clk 0:04:58.5]} 1... Nc6 {[%clk 0:04:56.9]} 2. g3 {[%clk 0:04:58.4]}
2... d5 {[%clk 0:04:55.5]} 3. Bg2 {[%clk 0:04:57.9]} 3... Bg4 {[%clk 0:04:53.4]}
4. d4 {[%clk 0:04:56.7]} 4... Qd7 {[%clk 0:04:49.7]} 5. c4 {[%clk 0:04:53]} 5...
e6 {[%clk 0:04:42.2]} 6. cxd5 {[%clk 0:04:51.7]} 6... exd5 {[%clk 0:04:41]} 7.
Nc3 {[%clk 0:04:51.1]} 7... O-O-O {[%clk 0:04:38.2]} 8. Bf4 {[%clk 0:04:48.7]}
8... Bh3 {[%clk 0:04:31.2]} 9. O-O {[%clk 0:04:45.9]} 9... Bxg2 {[%clk
0:04:26.7]} 10. Kxg2 {[%clk 0:04:45.8]} 10... Nf6 {[%clk 0:04:25.8]} 11. Rc1
{[%clk 0:04:42]} 11... Nh5 {[%clk 0:04:24.1]} 12. Be3 {[%clk 0:04:34.2]} 12...
Bb4 {[%clk 0:04:11.9]} 13. Qb3 {[%clk 0:04:31.6]} 13... Bxc3 {[%clk 0:04:05.5]}
14. Qxc3 {[%clk 0:04:31.5]} 14... Nf6 {[%clk 0:03:50.1]} 15. b4 {[%clk
0:04:29.6]} 15... Ne4 {[%clk 0:03:48]} 16. Qb3 {[%clk 0:04:24.9]} 16... h5
{[%clk 0:03:42.6]} 17. b5 {[%clk 0:04:22]} 17... Na5 {[%clk 0:03:37]} 18. Qa4
{[%clk 0:04:19.5]} 18... b6 {[%clk 0:03:32.5]} 19. Bf4 {[%clk 0:04:09.2]} 19...
Nd6 {[%clk 0:03:12.1]} 20. Ne5 {[%clk 0:04:07.2]} 20... Qf5 {[%clk 0:03:03.2]}
21. Nc6 {[%clk 0:04:02.5]} 21... Kd7 {[%clk 0:02:32.7]} 22. Nxa5 {[%clk
0:03:59.3]} 22... bxa5 {[%clk 0:02:31.4]} 23. b6+ {[%clk 0:03:57.8]} 23... Ke6
{[%clk 0:02:22.1]} 24. bxc7 {[%clk 0:03:56.6]} 24... Rc8 {[%clk 0:02:19.9]} 25.
Qc2 {[%clk 0:03:43.9]} 25... Qg4 {[%clk 0:02:09.8]} 26. Bxd6 {[%clk 0:03:40]}
26... Kxd6 {[%clk 0:02:07.1]} 27. Qc5+ {[%clk 0:03:33.3]} 27... Ke6 {[%clk
0:01:54.4]} 28. f3 {[%clk 0:03:31.6]} 28... Qg5 {[%clk 0:01:41.9]} 29. e4 {[%clk
0:03:29.1]} 29... Kd7 {[%clk 0:01:18]} 30. Qc6+ {[%clk 0:03:25.9]} 30... Ke7
{[%clk 0:01:14.9]} 31. Qc5+ {[%clk 0:03:18.8]} 31... Kd7 {[%clk 0:01:12]} 32.
Qxd5+ {[%clk 0:03:17.8]} 32... Qxd5 {[%clk 0:01:09.7]} 33. exd5 {[%clk
0:03:17.7]} 33... h4 {[%clk 0:01:07.1]} 34. Rfe1 {[%clk 0:03:10.5]} 34... hxg3
{[%clk 0:00:56.6]} 35. hxg3 {[%clk 0:03:10.4]} 35... Rhe8 {[%clk 0:00:49.7]} 36.
Rxe8 {[%clk 0:03:07.2]} 36... Kxe8 {[%clk 0:00:48.4]} 37. Kf2 {[%clk 0:03:02.5]}
37... Kd7 {[%clk 0:00:47.5]} 38. Ke3 {[%clk 0:03:01.3]} 38... f5 {[%clk
0:00:43.6]} 39. Rc5 {[%clk 0:02:59.9]} 39... Rxc7 {[%clk 0:00:37.9]} 40. Kf4
{[%clk 0:02:57.9]} 40... g6 {[%clk 0:00:26.5]} 41. Ke5 {[%clk 0:02:56.2]} 41...
Rb7 {[%clk 0:00:17.1]} 42. Rxa5 {[%clk 0:02:50.9]} 42... Rb2 {[%clk 0:00:07.1]}
43. Rxa7+ {[%clk 0:02:49.2]} 43... Ke8 {[%clk 0:00:04.7]} 44. d6 {[%clk
0:02:46.5]} 44... Kf8 {[%clk 0:00:00.7]} 45. Kf6 {[%clk 0:02:45.4]} 1-0

[Event "Live Chess"]
[Site "Chess.com"]
[Date "2024.06.02"]
[Round "-"]
[White "Zhevzh1k7"]
[Black "lateforthesky"]
[Result "0-1"]
[WhiteElo "1128"]
[BlackElo "2074"]
[TimeControl "300"]
[EndTime "8:17:12 PDT"]
[Termination "lateforthesky won by resignation"]

1. e4 {[%clk 0:04:56.1]} 1... b6 {[%clk 0:04:58.6]} 2. Nf3 {[%clk 0:04:53]} 2...
Bb7 {[%clk 0:04:57.7]} 3. Nc3 {[%clk 0:04:49.6]} 3... e6 {[%clk 0:04:57.2]} 4.
Bc4 {[%clk 0:04:48.1]} 4... c5 {[%clk 0:04:53.8]} 5. O-O {[%clk 0:04:44.2]} 5...
Nf6 {[%clk 0:04:52.1]} 6. d3 {[%clk 0:04:41.6]} 6... d6 {[%clk 0:04:50.6]} 7.
Bg5 {[%clk 0:04:39.7]} 7... Be7 {[%clk 0:04:49.2]} 8. e5 {[%clk 0:04:37.5]} 8...
dxe5 {[%clk 0:04:47.4]} 9. Nxe5 {[%clk 0:04:35.6]} 9... Nbd7 {[%clk 0:04:40.6]}
10. Bb5 {[%clk 0:04:32.7]} 10... Bc8 {[%clk 0:04:12.2]} 11. d4 {[%clk
0:04:25.6]} 11... O-O {[%clk 0:04:05.4]} 12. dxc5 {[%clk 0:04:16.9]} 12... Nxe5
{[%clk 0:03:58.5]} 13. Qxd8 {[%clk 0:04:11.3]} 13... Rxd8 {[%clk 0:03:55.9]} 14.
Bxf6 {[%clk 0:04:09.7]} 14... Bxf6 {[%clk 0:03:53.5]} 15. Ne4 {[%clk 0:04:06.6]}
15... a6 {[%clk 0:03:44.5]} 16. Be2 {[%clk 0:03:59.1]} 16... Bb7 {[%clk
0:03:24.2]} 17. f3 {[%clk 0:03:47.7]} 17... Bxe4 {[%clk 0:03:19.1]} 18. fxe4
{[%clk 0:03:47.6]} 18... bxc5 {[%clk 0:03:17.1]} 0-1